bitfinex/quotes_SOLUSD_20240616
["timestamp","ask_amount","ask_price","bid_price","bid_amount"]
[1718575251808,2.4755,149.47,149.4,0.68]
[1718575252007,7.4263,149.47,149.4,0.68]
[1718575252339,2.4755,149.46,149.4,0.68]
[1718575252522,14.8525,149.47,149.4,0.68]
[1718575252832,7.4263,149.47,149.4,0.68]
[1718575253031,2.4753,149.48,149.4,0.68]
[1718575253220,2.4754,149.47,149.4,0.68]
[1718575253422,7.4262,149.47,149.4,0.68]
[1718575253618,20.0,149.48,149.4,0.68]
[1718575253940,2.4754,149.47,149.4,0.68]
[1718575254419,7.4262,149.47,149.4,0.68]
[1718575254617,14.8524,149.47,149.4,0.68]
[1718575254829,24.7541,149.47,149.4,0.68]
[1718575255032,2.4755,149.46,149.4,0.68]
[1718575255340,7.4263,149.47,149.4,0.68]
[1718575255526,14.8525,149.47,149.4,0.68]
[1718575255742,14.8534,149.46,149.4,0.68]
[1718575255922,2.4757,149.45,149.4,0.51]
[1718575256125,22.2817,149.45,149.4,0.51]
[1718575256330,24.7575,149.45,149.4,0.51]
[1718575256543,20.0,149.48,149.39,15.7602]
[1718575256544,22.2834,149.44,149.39,15.7602]
[1718575256923,2.4761,149.43,149.39,15.7602]
[1718575257424,7.4282,149.43,149.33,22.3422]
[1718575257762,24.7598,149.44,149.33,22.3422]
[1718575257913,2.476,149.43,149.34,20.0]
[1718575258115,24.7598,149.44,149.34,20.0]
[1718575258335,14.8565,149.43,149.34,20.0]
[1718575258545,2.4762,149.42,149.34,20.0]
[1718575258741,2.4761,149.43,149.34,20.0]
[1718575258931,7.4283,149.43,149.34,20.0]
[1718575259327,14.8579,149.42,149.33,22.3422]
[1718575259540,5.27,149.39,149.34,5.27]
[1718575259742,5.27,149.39,149.33,22.3422]
[1718575259924,5.27,149.39,149.33,27.6122]
[1718575260245,5.27,149.39,149.33,22.3422]
[1718575260421,5.27,149.39,149.33,27.6122]
[1718575260738,17.3338,149.42,149.33,27.6122]
[1718575260739,0.17,149.44,149.33,22.3422]
[1718575260942,5.27,149.35,149.33,16.1992]
[1718575261356,5.27,149.35,149.29,6.5175]
[1718575261558,5.27,149.35,149.3,16.5604]
[1718575262437,5.27,149.34,149.3,16.5604]
[1718575263541,26.0339,149.38,149.3,16.5604]
[1718575263753,22.2913,149.39,149.3,21.8304]
[1718575263942,5.27,149.36,149.31,1.33922951]
[1718575264776,5.27,149.35,149.32,0.51]
[1718575264937,5.27,149.36,149.32,0.51]
[1718575265776,5.27,149.35,149.32,0.51]
[1718575265950,20.0,149.38,149.32,0.17]
[1718575266264,5.27,149.36,149.31,0.51]
[1718575266469,5.27,149.35,149.31,0.51]
[1718575267866,5.27,149.35,149.31,0.17]
[1718575268161,24.7711,149.37,149.31,0.17]
[1718575268361,2.4772,149.36,149.31,0.17]
[1718575268744,7.4316,149.36,149.31,0.17]
[1718575269149,2.4772,149.36,149.31,0.17]
[1718575270071,22.2939,149.37,149.31,0.51]
[1718575270072,22.2937,149.37,149.31,0.51]
[1718575270377,24.7711,149.37,149.31,0.51]
[1718575271283,2.4772,149.36,149.31,0.51]
[1718575271458,24.7711,149.37,149.31,0.51]
[1718575271857,2.4772,149.36,149.31,0.51]
[1718575272058,22.2939,149.37,149.31,0.51]
[1718575272059,7.4312,149.37,149.31,0.51]
[1718575272677,2.4772,149.36,149.31,0.51]
[1718575272987,7.4313,149.37,149.31,0.51]
[1718575273483,23.5569,149.38,149.31,0.51]
[1718575273650,5.27,149.36,149.32,0.17]
[1718575274084,5.27,149.36,149.31,0.51]
[1718575274250,20.0,149.39,149.31,0.51]
[1718575274251,44.7679,149.39,149.31,0.51]
[1718575274451,5.27,149.36,149.32,0.17]
[1718575274656,34.8606,149.39,149.33,0.17]
[1718575274875,5.27,149.36,149.33,0.51]
[1718575275578,2.4769,149.38,149.33,0.51]
[1718575275776,5.27,149.36,149.33,0.51]
[1718575276152,7.4307,149.38,149.33,0.51]
[1718575276354,5.27,149.36,149.33,0.51]
[1718575279951,5.27,149.36,149.33,0.18]
[1718575280292,5.27,149.36,149.33,0.17]
[1718575280674,5.27,149.35,149.3,16.5604]
[1718575281683,2.4772,149.37,149.3,16.5604]
[1718575281870,5.27,149.35,149.3,16.5604]
[1718575282275,5.27,149.35,149.31,0.68]
[1718575282467,5.27,149.36,149.31,0.68]
[1718575282977,5.27,149.35,149.31,0.68]
[1718575284353,5.27,149.35,149.31,0.34]
[1718575284557,5.27,149.34,149.3,16.5604]
[1718575284756,5.27,149.33,149.3,16.5604]
[1718575285382,5.27,149.34,149.3,16.5604]
[1718575285566,5.27,149.33,149.3,16.5604]
[1718575285887,5.27,149.33,149.31,0.17]
[1718575287558,5.27,149.33,149.3,16.5604]
[1718575289181,5.27,149.33,149.3,0.17]
[1718575289362,5.27,149.32,149.3,0.17]
[1718575290172,5.27,149.31,149.26,16.6393]
[1718575290484,2.4779,149.32,149.26,16.6393]
[1718575290485,5.27,149.29,149.26,16.6393]
[1718575291572,5.27,149.29,149.27,0.17]
[1718575294272,5.27,149.3,149.27,0.17]
[1718575298393,5.27,149.29,149.27,0.17]
[1718575299908,5.27,149.3,149.27,0.17]
[1718575300816,5.27,149.29,149.27,0.17]
[1718575301110,2.4777,149.33,149.27,0.17]
[1718575301411,5.27,149.3,149.27,0.17]
[1718575302696,5.27,149.3,149.22,15.1708]
[1718575302697,5.27,149.28,149.22,15.1708]
[1718575302900,5.27,149.25,149.22,15.1708]
[1718575303389,5.27,149.26,149.22,15.1708]
[1718575304604,5.27,149.26,149.23,0.51]
[1718575308791,5.27,149.27,149.23,0.51]
[1718575309715,28.5143,149.31,149.23,0.51]
[1718575309889,5.27,149.27,149.23,0.51]
[1718575312423,2.4782,149.3,149.23,0.51]
[1718575312632,5.27,149.28,149.24,0.34]
[1718575312922,20.0,149.3,149.24,0.17]
[1718575312923,5.27,149.27,149.24,0.17]
[1718575313137,5.27,149.26,149.24,0.17]
[1718575314713,30.55314534,149.31,149.24,0.17]
[1718575314916,5.27,149.27,149.24,0.17]
[1718575315303,12.3912,149.3,149.24,0.17]
[1718575315521,7.4348,149.3,149.24,0.17]
[1718575315830,5.27,149.27,149.24,0.17]
[1718575316407,2.4784,149.29,149.24,0.17]
[1718575316624,5.27,149.27,149.24,0.17]
[1718575317699,7.4347,149.3,149.24,0.34]
[1718575318033,5.27,149.28,149.24,0.34]
[1718575318200,5.27,149.27,149.24,0.34]
[1718575320040,5.27,149.27,149.22,15.1708]
[1718575320214,5.27,149.24,149.2,0.17]
[1718575320529,5.27,149.23,149.19,6.4803]
[1718575320729,5.27,149.24,149.19,6.4803]
[1718575321601,5.27,149.25,149.19,11.7503]
[1718575322010,5.27,149.25,149.2,0.34]
[1718575322225,5.27,149.25,149.2,0.68]
[1718575328419,5.27,149.24,149.2,0.68]
[1718575328620,7.4362,149.27,149.2,0.68]
[1718575328836,5.27,149.24,149.2,0.68]
[1718575331547,5.27,149.23,149.2,0.68]
[1718575335650,5.27,149.24,149.2,0.68]
[1718575336535,5.27,149.23,149.2,0.68]
[1718575339550,7.4361,149.27,149.2,0.51]
[1718575339551,5.27,149.22,149.2,0.51]
[1718575340150,5.27,149.22,149.18,15.129]
[1718575340528,5.27,149.21,149.18,15.129]
[1718575341761,5.27,149.2,149.17,0.68]
[1718575344057,21.08,149.24,149.18,0.17]
[1718575344262,7.4367,149.26,149.18,0.17]
[1718575344572,5.27,149.22,149.18,0.17]
[1718575345956,5.27,149.21,149.18,0.17]
[1718575346337,5.27,149.21,149.17,0.51]
[1718575346540,5.27,149.2,149.17,0.51]
[1718575347572,30.0624,149.24,149.17,0.51]
[1718575347573,2.4793,149.23,149.17,0.51]
[1718575347952,43.3931,149.24,149.17,0.51]
[1718575348146,2.4794,149.23,149.17,0.51]
[1718575348347,45.8724,149.24,149.17,0.51]
[1718575348861,28.5178,149.24,149.17,0.51]
[1718575349566,2.4794,149.23,149.17,0.51]
[1718575349971,45.8724,149.24,149.17,0.51]
[1718575350472,28.5178,149.24,149.17,0.51]
[1718575350647,23.5593,149.24,149.17,0.51]
[1718575352443,21.08,149.24,149.17,0.51]
[1718575352850,28.5177,149.24,149.17,0.51]
[1718575353551,49.31019702,149.25,149.18,0.17]
[1718575353759,5.27,149.22,149.18,0.17]
[1718575354267,34.43569702,149.25,149.18,0.17]
[1718575354473,5.27,149.22,149.18,0.17]
[1718575356468,5.27,149.21,149.18,0.17]
[1718575357060,5.27,149.2,149.18,0.17]
[1718575357256,5.27,149.2,149.17,0.51]
[1718575357977,45.8728,149.24,149.17,0.51]
[1718575358155,2.4794,149.23,149.17,0.51]
[1718575358473,43.3935,149.24,149.17,0.51]
[1718575358474,45.8728,149.24,149.17,0.51]
[1718575358650,2.4793,149.23,149.17,0.51]
[1718575358853,5.27,149.21,149.17,0.51]
[1718575360575,5.27,149.21,149.18,0.17]
[1718575360778,5.27,149.22,149.18,0.17]
[1718575360958,5.27,149.23,149.18,0.17]
[1718575361154,5.27,149.22,149.18,0.17]
[1718575364559,5.27,149.21,149.18,0.17]
[1718575366189,34.8746,149.25,149.18,0.17]
[1718575366484,42.3115,149.25,149.18,0.17]
[1718575366669,44.7907,149.25,149.18,0.17]
[1718575366985,22.4792,149.25,149.18,0.17]
[1718575367168,22.309,149.27,149.2,0.17]
[1718575367371,5.27,149.24,149.2,0.68]
[1718575367771,7.4367,149.26,149.2,0.68]
[1718575368086,5.27,149.24,149.2,0.68]
[1718575368385,22.3088,149.27,149.2,12.3232]
[1718575368587,5.27,149.26,149.2,12.3232]
[1718575369179,14.8723,149.27,149.2,12.3232]
[1718575369588,24.7859,149.28,149.2,7.0532]
[1718575369797,5.27,149.28,149.22,5.44]
[1718575369959,5.27,149.28,149.24,0.17]
[1718575370276,7.4353,149.29,149.24,0.17]
[1718575370473,5.27,149.27,149.24,0.17]
[1718575370696,2.4785,149.29,149.24,0.17]
[1718575370906,2.4782,149.3,149.24,0.17]
[1718575371180,26.0363,149.31,149.24,0.17]
[1718575371387,5.27,149.27,149.24,0.17]
[1718575371616,2.4782,149.3,149.24,0.17]
[1718575371810,5.27,149.28,149.24,0.17]
[1718575373610,5.27,149.28,149.24,15.4764]
[1718575373766,5.27,149.28,149.25,0.51]
[1718575379300,2.4783,149.3,149.25,0.51]
[1718575379596,5.27,149.28,149.26,0.17]
[1718575381402,12.7044,149.31,149.26,0.17]
[1718575381574,28.5144,149.31,149.26,0.17]
[1718575381771,4.9562,149.31,149.26,0.17]
[1718575382097,5.27,149.28,149.26,0.17]
[1718575382278,7.4343,149.31,149.26,0.17]
[1718575382601,9.47193455,149.34,149.26,12.0597]
[1718575382895,5.27,149.33,149.28,0.17]
[1718575383399,7.4318,149.36,149.28,5.44]
[1718575383703,7.4318,149.36,149.3,0.17]
[1718575383704,5.27,149.33,149.3,0.17]
[1718575384497,5.27,149.34,149.3,0.17]
[1718575387784,5.27,149.33,149.3,0.17]
[1718575388688,5.27,149.32,149.3,0.17]
[1718575389003,7.4323,149.35,149.27,25.27]
[1718575389307,5.27,149.32,149.27,25.27]
[1718575389508,5.27,149.31,149.27,20.0]
[1718575390084,5.27,149.32,149.27,20.0]
[1718575390483,5.27,149.32,149.28,0.68]
[1718575390678,24.7747,149.35,149.28,0.68]
[1718575390884,5.27,149.32,149.28,0.68]
[1718575391600,24.7745,149.35,149.28,0.68]
[1718575391601,5.27,149.33,149.28,0.68]
[1718575393909,5.27,149.32,149.28,0.68]
[1718575394115,5.27,149.31,149.28,0.68]
[1718575395203,5.27,149.3,149.28,0.51]
[1718575395713,5.27,149.3,149.28,0.17]
[1718575396713,5.27,149.31,149.28,0.17]
[1718575396928,5.27,149.31,149.28,0.51]
[1718575397414,5.27,149.32,149.28,0.51]
[1718575397621,4.9546,149.36,149.28,0.51]
[1718575397918,6.6207,149.41,149.31,0.17]
[1718575398212,5.27,149.36,149.31,20.51]
[1718575398428,5.27,149.36,149.32,0.17]
[1718575398723,5.27,149.36,149.33,0.17]
[1718575398892,2.4767,149.39,149.33,0.51]
[1718575399111,5.27,149.36,149.33,0.51]
[1718575400295,2.4767,149.39,149.34,0.17]
[1718575400516,7.4302,149.39,149.34,0.51]
[1718575400930,5.27,149.36,149.34,0.51]
[1718575402310,6.99088386,149.41,149.35,0.17]
[1718575402630,5.27,149.39,149.35,0.51]
[1718575402802,5.27,149.39,149.36,0.17]
[1718575403128,5.27,149.38,149.35,0.51]
[1718575403416,5.27,149.38,149.34,0.17]
[1718575403617,5.27,149.38,149.34,0.68]
[1718575403808,5.27,149.38,149.34,0.51]
[1718575405821,5.27,149.37,149.33,20.0]
[1718575406004,5.27,149.36,149.33,20.0]
[1718575406529,5.27,149.36,149.33,0.17]
[1718575406728,5.27,149.36,149.33,0.51]
[1718575406898,5.27,149.35,149.33,0.51]
[1718575407109,5.27,149.36,149.33,0.51]
[1718575410724,5.27,149.37,149.33,0.51]
[1718575411427,6.99002259,149.42,149.35,0.17]
[1718575411603,6.5583,149.45,149.35,0.17]
[1718575411604,5.27,149.41,149.35,20.51]
[1718575411815,5.27,149.41,149.35,25.78]
[1718575412038,5.27,149.41,149.36,0.17]
[1718575412764,5.27,149.4,149.36,0.17]
[1718575413120,5.27,149.4,149.37,0.17]
[1718575413343,5.27,149.4,149.37,0.51]
[1718575413638,32.4275,149.46,149.37,0.51]
[1718575413844,5.27,149.41,149.38,0.17]
[1718575414052,5.27,149.41,149.39,0.17]
[1718575414636,5.27,149.41,149.38,0.51]
[1718575415154,7.4277,149.44,149.38,0.51]
[1718575415155,5.27,149.4,149.38,0.51]
[1718575415932,5.27,149.41,149.38,0.51]
[1718575417025,43.3621,149.45,149.38,0.51]
[1718575417234,45.8379,149.45,149.38,0.51]
[1718575417451,5.27,149.41,149.38,0.51]
[1718575420748,20.0492,149.46,149.38,0.51]
[1718575420954,5.27,149.41,149.38,0.51]
[1718575421137,29.9516,149.46,149.39,0.17]
[1718575421453,5.27,149.42,149.39,0.17]
[1718575422956,2.4759,149.44,149.39,0.17]
[1718575423151,2.4761,149.43,149.38,0.51]
[1718575423349,24.7594,149.44,149.38,0.51]
[1718575423578,2.476,149.44,149.38,0.51]
[1718575423868,45.8383,149.45,149.38,0.51]
[1718575424167,2.4759,149.44,149.38,0.51]
[1718575424468,45.8383,149.45,149.38,0.51]
[1718575424665,28.5074,149.45,149.38,0.51]
[1718575424841,28.5074,149.45,149.39,0.17]
[1718575425043,23.5557,149.45,149.39,0.51]
[1718575425363,35.9343,149.45,149.39,0.51]
[1718575425578,7.4278,149.44,149.38,0.17]
[1718575425861,28.5075,149.45,149.39,0.17]
[1718575426229,23.5558,149.45,149.39,0.17]
[1718575426436,2.4758,149.45,149.39,0.34]
[1718575426736,5.27,149.42,149.39,0.34]
[1718575427640,5.27,149.41,149.39,0.34]
[1718575428258,5.27,149.41,149.38,0.34]
[1718575429645,7.4279,149.44,149.38,0.34]
[1718575429851,5.27,149.41,149.38,0.34]
[1718575431363,5.27,149.4,149.38,0.34]
[1718575432745,2.476,149.44,149.38,0.34]
[1718575432960,5.27,149.4,149.38,0.34]
[1718575433872,5.27,149.41,149.38,0.34]
[1718575434065,5.27,149.41,149.37,0.17]
[1718575434382,5.27,149.4,149.36,0.34]
[1718575434566,7.4288,149.42,149.36,0.17]
[1718575434751,5.27,149.38,149.36,0.17]
[1718575435202,5.27,149.38,149.34,15.576]
[1718575435346,4.9529,149.41,149.34,15.576]
[1718575435347,5.27,149.37,149.34,15.576]
[1718575435961,2.4764,149.41,149.35,20.0]
[1718575435962,5.27,149.38,149.35,20.0]
[1718575436479,5.27,149.37,149.35,20.0]
[1718575437762,5.27,149.38,149.35,20.0]
[1718575438748,5.27,149.39,149.35,20.0]
[1718575439369,5.27,149.38,149.35,20.0]
[1718575440164,5.27,149.38,149.35,0.17]
[1718575440369,5.27,149.38,149.35,0.68]
[1718575442268,7.429,149.42,149.35,0.68]
[1718575442458,5.27,149.37,149.35,0.68]
[1718575442650,7.429,149.42,149.34,15.576]
[1718575442651,5.27,149.36,149.34,15.576]
[1718575444370,5.27,149.36,149.34,0.17]
[1718575444571,5.27,149.36,149.34,0.68]
[1718575445356,5.27,149.35,149.32,20.0]
[1718575445566,5.27,149.35,149.3,15.7846]
[1718575445567,5.27,149.35,149.31,0.17]
[1718575446554,5.27,149.35,149.32,0.17]
[1718575446748,5.27,149.35,149.32,0.51]
[1718575447953,2.4767,149.4,149.32,0.51]
[1718575448272,5.27,149.35,149.32,0.51]
[1718575448781,5.27,149.36,149.32,0.51]
[1718575450594,6.99104156,149.41,149.33,0.17]
[1718575451298,5.27,149.37,149.33,0.17]
[1718575451482,40.6815,149.42,149.33,0.17]
[1718575451794,5.27,149.38,149.34,0.17]
[1718575451957,5.27,149.38,149.34,20.51]
[1718575452164,5.27,149.38,149.35,0.17]
[1718575452587,5.27,149.38,149.35,0.51]
[1718575453876,2.4764,149.41,149.35,0.51]
[1718575454076,5.27,149.38,149.35,0.51]
[1718575454291,38.2052,149.42,149.35,0.51]
[1718575454599,5.27,149.38,149.35,0.51]
[1718575456290,7.4292,149.41,149.35,0.51]
[1718575456589,5.27,149.38,149.35,0.51]
[1718575458286,13.30374031,149.43,149.36,0.17]
[1718575458287,9.46594031,149.43,149.36,0.17]
[1718575458587,5.27,149.42,149.36,5.78]
[1718575458783,5.27,149.42,149.38,0.17]
[1718575458969,5.27,149.42,149.38,0.51]
[1718575459189,5.27,149.42,149.34,6.386]
[1718575459190,7.4308,149.38,149.31,16.1201]
[1718575459410,5.27,149.33,149.31,16.1201]
[1718575459705,2.4774,149.35,149.27,5.27]
[1718575459706,5.27,149.32,149.27,21.3901]
[1718575459873,2.4778,149.33,149.27,16.1201]
[1718575460184,17.343,149.34,149.23,16.1201]
[1718575460185,15.8969,149.34,149.23,16.1201]
[1718575460295,5.27,149.34,149.28,22.93970678]
[1718575460520,18.3738,149.38,149.3,5.27]
[1718575460699,28.6338,149.39,149.31,5.27]
[1718575460890,2.4767,149.4,149.31,5.27]
[1718575461118,6.98927456,149.42,149.35,5.27]
[1718575461273,2.4761,149.43,149.36,0.17]
[1718575461494,22.2835,149.44,149.36,36.4288]
[1718575461495,22.2833,149.44,149.36,36.4288]
[1718575461696,5.27,149.41,149.36,16.4288]
[1718575461898,7.4279,149.44,149.36,16.4288]
[1718575462120,6.98892635,149.46,149.38,5.44]
[1718575462391,2.4755,149.47,149.4,0.17]
[1718575462582,5.27,149.45,149.4,20.17]
[1718575462776,5.27,149.45,149.37,20.0]
[1718575462777,2.4765,149.41,149.37,20.0]
[1718575462995,7.4289,149.42,149.37,20.0]
[1718575463172,2.4754,149.47,149.38,0.17]
[1718575463370,2.4755,149.47,149.38,5.95]
[1718575463585,7.4258,149.48,149.4,0.17]
[1718575463826,2.4754,149.47,149.4,0.68]
[1718575463993,5.27,149.45,149.4,0.68]
[1718575464209,2.4755,149.46,149.4,0.68]
[1718575464383,7.7457,149.45,149.4,0.68]
[1718575464589,5.27,149.41,149.38,0.17]
[1718575464786,5.27,149.4,149.38,0.17]
[1718575466402,5.27,149.39,149.32,22.0305]
[1718575466611,5.27,149.37,149.33,20.0]
[1718575467581,5.27,149.37,149.32,27.3005]
[1718575468311,5.27,149.37,149.33,0.17]
[1718575468514,18.2281,149.44,149.34,5.27]
[1718575468688,18.2281,149.44,149.36,0.17]
[1718575468689,5.27,149.41,149.36,0.17]
[1718575468878,5.27,149.41,149.36,0.34]
[1718575469084,5.27,149.41,149.37,0.34]
[1718575469803,5.27,149.4,149.37,0.34]
[1718575470225,15.9503,149.48,149.38,0.17]
[1718575470428,2.4754,149.47,149.4,0.17]
[1718575470632,5.27,149.43,149.4,0.17]
[1718575470922,5.27,149.41,149.38,0.17]
[1718575471132,28.5073,149.45,149.38,0.17]
[1718575471521,2.4759,149.44,149.38,0.17]
[1718575471815,7.4278,149.44,149.38,0.17]
[1718575472416,2.476,149.44,149.38,0.17]
[1718575472619,28.5074,149.45,149.38,0.17]
[1718575472926,33.2779,149.48,149.38,5.61]
[1718575473233,0.36039091,149.51,149.41,5.27]
[1718575473426,5.27,149.48,149.43,0.17]
[1718575473588,5.27,149.45,149.42,20.17]
[1718575473792,2.4754,149.47,149.41,16.1061]
[1718575473793,5.27,149.44,149.41,16.4461]
[1718575474614,5.27,149.42,149.39,0.17]
[1718575474810,5.27,149.45,149.37,15.2064]
[1718575474811,5.27,149.4,149.37,15.2064]
[1718575475012,5.27,149.4,149.38,20.0]
[1718575475214,5.27,149.42,149.38,20.0]
[1718575475394,6.98633845,149.5,149.4,5.27]
[1718575475590,5.27,149.46,149.41,20.0]
[1718575475800,24.31133845,149.5,149.41,20.0]
[1718575475801,6.98633845,149.5,149.41,20.0]
[1718575476126,5.27,149.46,149.42,0.68]
[1718575476727,29.61938604,149.51,149.42,0.68]
[1718575476728,22.19498604,149.51,149.42,0.68]
[1718575477025,0.36039091,149.51,149.45,21.7674]
[1718575477326,0.36039091,149.51,149.5,5.44]
[1718575477526,0.36039091,149.51,149.5,20.68]
[1718575477743,0.36039091,149.51,149.5,25.95]
[1718575478245,22.311,149.62,149.51,120.27]
[1718575478246,5.0,149.62,149.51,120.27]
[1718575478427,5.0,149.62,149.58,0.17]
[1718575478728,5.0,149.62,149.52,55.3637]
[1718575478729,10.54,149.59,149.53,0.17]
[1718575478927,5.0,149.62,149.53,20.34]
[1718575479096,5.0,149.62,149.56,0.17]
[1718575479298,5.0,149.62,149.58,0.17]
[1718575479502,5.27,149.61,149.59,0.17]
[1718575479699,5.27,149.61,149.55,25.27]
[1718575479700,5.27,149.6,149.55,20.0]
[1718575479909,5.27,149.56,149.48,100.0]
[1718575480206,5.0,149.62,149.48,100.0]
[1718575480207,5.27,149.55,149.49,1.54742993]
[1718575480423,9.8929,149.61,149.5,5.27]
[1718575480608,9.8929,149.61,149.53,100.0]
[1718575480609,5.27,149.56,149.53,100.0]
[1718575480932,5.27,149.59,149.51,120.1]
[1718575481121,5.0,149.62,149.51,120.1]
[1718575481122,5.0,149.62,149.53,105.27]
[1718575481439,5.0,149.62,149.55,25.37]
[1718575481620,5.27,149.61,149.56,0.34]
[1718575481937,5.27,149.6,149.57,0.34]
[1718575482241,5.0,149.62,149.59,6.278]
[1718575482453,5.0,149.62,149.61,0.17]
[1718575483335,5.0,149.62,149.61,125.54]
[1718575483516,5.0,149.62,149.61,146.05]
[1718575483707,5.0,149.62,149.61,140.78]
[1718575483913,5.0,149.62,149.61,125.95]
[1718575484133,5.0,149.62,149.61,120.68]
[1718575484357,5.0,149.62,149.61,25.95]
[1718575484508,0.8506716,149.67,149.63,0.17]
[1718575484711,0.8506716,149.67,149.63,20.68]
[1718575485250,4.77,149.66,149.63,20.68]
[1718575485420,4.77,149.66,149.63,0.68]
[1718575485761,5.27,149.65,149.63,0.68]
[1718575485907,0.8506716,149.67,149.6,20.0]
[1718575486121,5.27,149.64,149.61,0.17]
[1718575486330,3.3227716,149.67,149.61,0.34]
[1718575486537,5.27,149.64,149.61,0.34]
[1718575487063,3.3227716,149.67,149.6,20.0]
[1718575487064,5.27,149.63,149.6,20.0]
[1718575487222,5.27,149.62,149.59,20.0]
[1718575487429,2.4723,149.66,149.58,20.0]
[1718575487734,16.6206716,149.67,149.57,20.0]
[1718575488551,16.6206716,149.67,149.58,100.17]
[1718575488754,16.6206716,149.67,149.59,20.51]
[1718575489049,16.6206716,149.67,149.6,0.17]
[1718575489422,24.0369716,149.67,149.6,0.17]
[1718575489847,8.2669716,149.67,149.6,0.17]
[1718575490122,3.3227716,149.67,149.6,0.17]
[1718575490550,5.7949716,149.67,149.6,0.17]
[1718575490749,5.7949716,149.67,149.59,0.17]
[1718575490750,2.4725,149.65,149.59,0.17]
[1718575490947,2.4723,149.66,149.58,0.17]
[1718575491647,3.3227716,149.67,149.58,0.17]
[1718575491848,0.8506716,149.67,149.58,0.17]
[1718575492159,13.2111716,149.67,149.59,0.17]
[1718575492321,8.2670716,149.67,149.59,0.34]
[1718575492517,15.6833716,149.67,149.61,0.17]
[1718575492727,13.2111716,149.67,149.61,0.34]
[1718575493064,15.6833716,149.67,149.61,0.34]
[1718575493234,2.4722,149.66,149.61,0.34]
[1718575493441,12.3613,149.66,149.61,0.34]
[1718575493855,2.4724,149.65,149.61,0.34]
[1718575494225,14.8336,149.66,149.61,0.34]
[1718575494433,7.4168,149.66,149.61,0.34]
[1718575494750,0.8506716,149.67,149.61,0.34]
[1718575494957,0.8506716,149.67,149.62,0.34]
[1718575495272,0.8506716,149.67,149.63,0.34]
[1718575495455,0.8506716,149.67,149.62,0.34]